bitfinex-derivatives/quotes_ETHF0:USTF0_20250807
["timestamp","ask_amount","ask_price","bid_price","bid_amount"]
[1754562770297,0.0119,3803.8,3803.2,0.52578]
[1754562770596,0.0119,3803.8,3802.2,3.2078]
[1754562770597,0.0056,3803.2,3803.0,0.52581]
[1754562770796,0.2935901,3803.1,3802.5,2.7485]
[1754562770992,0.0056,3803.2,3803.0,2.3658]
[1754562771202,0.5314,3803.1,3803.0,0.8914]
[1754562771399,0.5377,3803.1,3803.0,0.8914]
[1754562772303,0.0063,3803.0,3802.7,2.3658]
[1754562772504,0.0056,3802.8,3802.2,4.4819]
[1754562772706,0.0056,3802.8,3802.3,2.7485]
[1754562773010,0.0056,3802.8,3802.2,3.2078]
[1754562773011,0.0056,3802.8,3802.5,2.7485]
[1754562773192,0.0056,3802.8,3802.7,0.8914]
[1754562773499,0.0119,3802.4,3802.3,0.8914]
[1754562773996,0.0119,3802.4,3802.3,2.3658]
[1754562774203,3.2197,3802.4,3802.3,2.3658]
[1754562774798,3.2197,3802.4,3802.3,0.8914]
[1754562774999,3.5010787,3802.4,3802.3,0.8914]
[1754562775199,0.0056,3802.1,3802.0,0.8914]
[1754562775506,0.53784,3802.1,3802.0,0.8914]
[1754562775799,0.81934261,3802.1,3802.0,0.8914]
[1754562776298,0.0119,3802.1,3802.0,0.8914]
[1754562776807,1.2382569,3802.3,3802.0,2.00034]
[1754562777108,0.7242369,3802.3,3802.2,0.8914]
[1754562777491,0.8374369,3802.3,3801.6,0.8914]
[1754562777695,0.0119,3801.9,3801.8,0.52597]
[1754562777905,0.0119,3801.9,3801.8,1.41737]
[1754562778098,0.0119,3801.9,3801.8,0.8914]
[1754562778606,0.0056,3801.9,3801.8,0.8914]
[1754562778801,0.0056,3801.9,3801.8,2.3658]
[1754562778999,0.0056,3801.9,3801.8,3.6399]
[1754562779200,3.2078,3802.0,3801.9,0.52597]
[1754562779505,3.2078,3802.0,3801.9,4.04307]
[1754562780305,3.2078,3802.5,3802.4,0.5259]
[1754562780494,3.2078,3802.5,3802.4,4.043]
[1754562781503,3.2078,3802.9,3802.8,4.04294]
[1754562783809,3.2155,3802.9,3802.8,4.04294]
[1754562784005,3.2155,3802.9,3802.6,0.52586]
[1754562784006,3.73364,3802.9,3802.6,0.52586]
[1754562784207,0.0163,3802.7,3802.6,0.848]
[1754562784807,0.0046,3802.8,3802.7,0.52585]
[1754562785013,0.0098,3802.8,3802.7,1.37385]
[1754562785215,3.2078,3802.9,3802.7,4.04295]
[1754562785408,3.2078,3802.9,3802.7,1.80425]
[1754562785616,3.2078,3802.9,3802.8,3.5171]
[1754562785810,3.2078,3802.9,3802.8,1.5171]
[1754562786008,3.2078,3802.9,3802.8,0.2387]
[1754562786313,3.2078,3802.9,3802.8,1.5171]
[1754562786815,3.2078,3802.9,3802.7,0.52585]
[1754562787014,3.2078,3802.9,3802.8,1.2784]
[1754562787309,0.0046,3802.8,3802.7,0.52585]
[1754562787511,0.0046,3802.7,3802.6,0.52586]
[1754562787818,4.3696,3802.9,3802.8,0.52584]
[1754562788017,4.3696,3802.9,3802.7,0.52585]
[1754562788217,1.1618,3802.8,3802.7,1.37385]
[1754562788409,1.1618,3802.8,3802.7,0.848]
[1754562789014,4.365,3802.9,3802.8,3.5171]
[1754562789213,4.365,3802.9,3802.7,0.52585]
[1754562789214,0.52584,3802.8,3802.5,0.52587]
[1754562789421,4.365,3803.1,3802.9,0.52582]
[1754562789717,1.1618,3803.0,3802.9,0.848]
[1754562790113,3.2078,3803.1,3803.0,0.52581]
[1754562790318,3.2078,3803.1,3803.0,4.04291]
[1754562790618,4.3696,3803.1,3803.0,0.848]
[1754562790818,3.2124,3803.6,3803.0,4.83164]
[1754562791020,3.2124,3803.6,3803.3,0.848]
[1754562791219,0.0046,3803.6,3803.5,0.848]
[1754562791418,1.1618,3803.6,3803.5,0.848]
[1754562792228,0.0046,3803.8,3803.6,3.5171]
[1754562792428,0.0046,3803.8,3802.6,3.2078]
[1754562792429,1.1618,3803.4,3803.1,1.3738]
[1754562792622,1.1618,3803.2,3803.1,1.3738]
[1754562792921,3.2078,3803.4,3803.3,0.52577]
[1754562793126,3.2078,3803.4,3803.3,4.04287]
[1754562793522,4.3696,3803.4,3803.3,4.04287]
[1754562793821,4.3696,3803.4,3803.3,1.37377]
[1754562794026,1.9979,3803.3,3803.0,0.848]
[1754562794322,1.1618,3803.3,3803.1,3.5171]
[1754562794624,3.2078,3803.4,3803.3,4.04287]
[1754562795820,3.2078,3803.4,3803.3,3.5171]
[1754562796224,3.2078,3803.4,3803.3,2.1264]
[1754562796424,4.365,3803.4,3803.3,2.1264]
[1754562796727,4.3696,3803.4,3803.3,0.848]
[1754562797024,4.3696,3803.4,3803.3,2.2387]
[1754562797222,4.3696,3803.4,3803.3,0.848]
[1754562797428,4.3696,3803.4,3803.3,2.2387]
[1754562797635,4.3696,3803.4,3803.3,3.5171]
[1754562797920,3.2078,3803.4,3803.3,3.5171]
[1754562798427,3.2124,3803.4,3803.3,3.5171]
[1754562799028,4.3696,3803.4,3803.3,3.5171]
[1754562799319,0.52582,3803.0,3802.7,0.52586]
[1754562799526,0.8407,3803.3,3802.7,0.52586]
[1754562800028,1.1572,3802.8,3802.7,1.37385]
[1754562800330,0.0046,3802.8,3802.7,3.5171]
[1754562800715,0.52587,3802.6,3802.4,2.2387]
[1754562800915,1.1618,3802.5,3802.4,0.848]
[1754562801128,0.53045,3802.8,3802.6,3.5171]
[1754562801329,3.2078,3802.9,3802.8,0.848]
[1754562801524,3.2078,3802.9,3802.8,3.5171]
[1754562803224,3.2078,3803.4,3803.3,3.5171]
[1754562803421,3.2078,3803.4,3802.2,4.52262]
[1754562803422,4.3696,3803.4,3802.2,4.52262]
[1754562803721,0.53039,3803.2,3803.1,0.848]
[1754562803928,1.1618,3803.2,3803.1,0.848]
[1754562804320,0.0046,3803.2,3803.1,0.848]
[1754562804521,1.1618,3803.2,3803.1,0.848]
[1754562805319,0.5258,3803.1,3802.8,0.52584]
[1754562805527,1.37111,3803.1,3802.9,0.848]
[1754562805828,1.1618,3803.0,3802.9,0.848]
[1754562806219,0.52579,3803.2,3802.4,1.31475]
[1754562806421,0.0046,3803.1,3803.0,2.2387]
[1754562806618,0.0046,3803.1,3803.0,3.5171]
[1754562806822,3.93148658,3803.4,3802.8,3.5171]
[1754562807023,0.0046,3803.1,3802.2,5.3342]
[1754562807224,3.2078,3802.7,3802.6,0.52587]
[1754562807424,3.2078,3802.7,3802.6,4.04297]
[1754562809031,0.71908658,3803.3,3803.1,4.1539]
[1754562809233,0.71908658,3803.4,3803.3,4.15387]
[1754562809928,3.2078,3803.5,3803.3,4.15387]
[1754562810126,0.71908658,3803.4,3803.3,0.52577]
[1754562810633,3.2078,3803.5,3803.3,4.15387]
[1754562810831,3.2078,3803.5,3803.4,3.6281]
[1754562811424,0.71908658,3803.6,3803.5,0.52574]
[1754562811627,0.71908658,3803.6,3803.5,4.15384]
[1754562811832,1.88128658,3803.6,3803.5,0.8537]
[1754562812028,2.51654,3803.5,3803.2,2.86658]
[1754562812232,1.1622,3803.4,3803.2,2.86658]
[1754562812534,0.0048,3803.3,3803.2,3.30018]
[1754562812929,1.1574,3803.4,3803.2,4.15388]
[1754562813124,0.71908658,3803.6,3803.4,0.52575]
[1754562813333,0.0048,3803.7,3803.5,0.52574]
[1754562813529,0.71908658,3803.6,3803.5,0.52574]
[1754562813727,2.70988658,3803.8,3803.7,0.8537]
[1754562814029,1.1622,3803.7,3803.6,0.52572]
[1754562814533,1.1622,3803.7,3803.6,1.37942]
[1754562814927,0.52573,3803.6,3803.5,1.6359]
[1754562815127,1.9908,3803.6,3803.5,0.1488]
[1754562815528,0.71908658,3803.8,3803.6,0.52573]
[1754562815728,0.72388658,3803.8,3803.6,4.15383]
[1754562815933,1.88128658,3803.8,3803.7,2.3408]
[1754562816134,2.70988658,3803.8,3803.6,0.52573]
[1754562816325,1.1622,3803.7,3803.6,0.52573]
[1754562816731,1.9908,3803.6,3803.5,0.67454]
[1754562816932,1.9908,3803.6,3803.5,1.52824]
[1754562817132,1.1622,3803.6,3803.5,3.01534]
[1754562817332,1.1622,3803.6,3803.5,0.1488]
[1754562817528,1.9908,3803.6,3803.5,0.1488]
[1754562818038,1.24479658,3803.8,3803.6,0.52573]
[1754562818233,1.24479658,3803.8,3803.7,3.6281]
[1754562818530,0.52573,3803.7,3803.5,0.1488]
[1754562818735,1.9908,3803.6,3803.5,0.1488]
[1754562819932,2.70988658,3803.6,3803.5,0.1488]
[1754562820837,2.70988658,3803.6,3803.5,0.144]
[1754562821835,0.52586,3802.7,3802.4,2.86669]
[1754562822035,1.1574,3802.6,3802.5,2.3408]
[1754562822242,5.1938,3802.6,3802.5,0.8537]
[1754562822543,1.986,3802.4,3801.8,1.37967]
[1754562822737,1.68335,3802.1,3801.9,3.6281]
[1754562823041,1.68335,3802.1,3801.6,0.8537]
[1754562823042,0.526,3801.7,3801.6,0.8537]
[1754562823242,4.3652,3801.7,3801.6,2.3408]
[1754562824538,4.3652,3801.7,3801.5,0.8537]
[1754562824539,1.1574,3801.6,3801.5,0.8537]
[1754562824729,1.1574,3801.6,3801.5,2.3408]
[1754562824935,1.1574,3801.6,3801.5,3.6281]
[1754562825332,1.1574,3801.6,3801.5,4.15411]
[1754562825744,1.1574,3801.6,3800.9,4.52305]
[1754562825745,0.7187546,3801.9,3801.8,0.52598]
[1754562825942,1.1574,3802.0,3801.8,2.86678]
[1754562826143,1.1574,3802.0,3801.8,2.01308]
[1754562826340,1.8761546,3802.0,3801.9,2.3408]
[1754562826639,1.1574,3802.0,3801.9,3.6281]
[1754562826838,0.52596,3801.9,3801.7,0.8537]
[1754562827030,1.1574,3801.7,3801.6,0.8537]
[1754562827236,5.1938,3801.7,3801.6,0.8537]
[1754562827436,5.1938,3801.7,3801.5,0.52601]
[1754562827731,1.1574,3801.6,3801.5,0.52601]
[1754562828343,1.1574,3801.6,3801.5,1.37971]
[1754562828536,3.2078,3801.7,3801.6,3.6281]
[1754562828931,4.3652,3801.7,3801.6,3.6281]
[1754562829542,1.986,3801.6,3801.3,0.52604]
[1754562829746,1.1574,3801.4,3801.3,2.3408]
[1754562830038,1.1574,3801.4,3801.3,0.8537]
[1754562830232,1.986,3801.4,3801.3,0.8537]
[1754562830437,3.2078,3801.7,3800.7,1.3153]
[1754562830638,4.3652,3801.7,3799.5,23.89345]
[1754562830839,1.1574,3801.6,3801.4,0.52602]
[1754562831038,1.1574,3801.6,3801.5,2.3408]
[1754562831244,3.2078,3801.7,3801.6,4.15411]
[1754562831841,4.3652,3801.7,3801.6,2.3408]
[1754562832045,5.1938,3801.7,3801.6,2.3408]
[1754562832345,3.2078,3801.7,3801.6,3.6281]
[1754562832539,4.3652,3801.7,3801.6,3.6281]
[1754562833345,0.3652,3801.7,3801.6,2.3408]
[1754562833647,1.1938,3801.7,3801.6,2.3408]
[1754562833847,3.73376,3802.0,3801.9,3.6281]
[1754562834050,3.2078,3802.0,3801.9,3.6281]
[1754562834243,3.2078,3802.5,3802.3,0.5259]
[1754562834446,4.75231812,3803.0,3802.4,0.52588]
[1754562834746,4.75231812,3803.0,3802.8,0.8537]
[1754562834747,1.35443,3802.9,3802.8,0.8537]
[1754562835046,0.8286,3802.6,3802.5,1.4871]
[1754562835445,1.1938,3802.6,3802.5,1.4871]
[1754562835642,0.3652,3802.6,3802.5,2.3408]
[1754562835845,0.3652,3802.6,3802.5,3.6281]
[1754562836146,1.54451812,3802.9,3802.7,3.6281]
[1754562836147,0.52585,3802.8,3802.7,3.6281]
[1754562836648,1.71965,3802.8,3802.7,0.8537]
[1754562837046,0.89105,3802.8,3802.7,2.3408]
[1754562837249,0.89105,3802.8,3802.7,3.6281]
[1754562837444,0.52585,3802.8,3802.7,3.6281]
[1754562837639,24.2988,3803.0,3802.2,1.31478]
[1754562837848,0.52585,3802.8,3802.6,3.6281]
[1754562838047,0.52583,3802.9,3802.7,2.141]
[1754562838247,0.52583,3802.9,3802.8,3.6281]
[1754562838444,24.82462,3803.0,3802.8,3.6281]
[1754562838646,24.2988,3803.0,3802.5,0.52587]
[1754562838948,3.2078,3803.0,3802.8,0.52583]
[1754562839150,3.2078,3803.0,3802.9,3.7248]
[1754562840241,37.862,3803.4,3802.9,0.902]
[1754562840446,38.38776,3803.4,3803.2,2.3752]
[1754562840747,3.2078,3803.5,3803.4,3.7248]
[1754562843045,3.2078,3804.0,3803.9,2.3752]
[1754562843245,0.28247772,3804.3,3803.9,2.3752]
[1754562843246,1.52375355,3804.3,3804.0,0.52567]
[1754562843447,0.80810772,3804.3,3804.2,2.3752]
[1754562843747,2.01857772,3804.3,3804.2,2.3752]
[1754562843946,2.01857772,3804.3,3804.2,3.7248]
[1754562844244,0.28247772,3804.3,3804.2,2.3752]
[1754562844442,0.28247772,3804.3,3804.2,3.7248]
[1754562844645,0.28247772,3804.3,3804.2,4.25045]
[1754562846151,3.2078,3804.9,3804.8,0.52556]
[1754562846453,1.0,3805.0,3804.9,3.7248]
[1754562846857,20.901,3805.7,3805.0,2.2516]
[1754562847047,1.3702,3805.4,3805.2,2.8228]
[1754562847247,2.61030285,3805.8,3805.4,0.902]
[1754562847451,1.3659,3805.9,3805.3,1.4732]
[1754562847748,0.52543,3805.8,3805.3,0.52548]
[1754562847950,0.52545,3805.6,3805.1,0.52551]
[1754562848257,3.26158,3805.4,3805.3,3.7248]
[1754562848757,2.7361,3805.4,3805.3,3.7248]
[1754562849252,1.3702,3805.3,3804.8,0.902]
[1754562849455,1.3702,3805.3,3804.6,3.2078]
[1754562849456,0.8355,3805.5,3804.6,3.2078]
[1754562849652,2.7361,3805.0,3804.9,2.3752]
[1754562849963,3.26164,3805.0,3804.9,2.3752]
[1754562850250,1.89574,3805.0,3804.9,3.7248]
[1754562850448,0.52552,3805.1,3804.9,3.7248]
[1754562850650,0.5255,3805.3,3804.9,0.52555]
[1754562850850,0.5255,3805.3,3805.0,3.7248]
[1754562851047,0.52552,3805.2,3805.1,3.7248]
[1754562851354,0.52549,3805.4,3805.3,3.7248]
[1754562852348,1.3659,3806.5,3805.9,0.5254]
[1754562852550,0.52536,3806.3,3806.0,1.4732]
[1754562852749,0.09,3806.6,3806.2,3.2078]
[1754562852947,1.3702,3807.1,3806.3,2.8228]
[1754562853155,0.52534,3806.4,3806.3,1.3496]
[1754562853351,2.7697,3806.3,3806.2,3.2078]
[1754562853551,1.3702,3806.1,3805.2,1.3496]
[1754562853755,0.52543,3805.8,3805.6,2.3752]
[1754562854064,0.52542,3805.9,3805.8,3.7248]
[1754562854359,1.3702,3806.7,3806.0,0.5254]
[1754562854557,1.3702,3806.7,3806.1,3.7248]
[1754562854859,1.3702,3806.7,3806.0,1.3496]
[1754562855055,1.3702,3806.7,3806.2,1.3496]
[1754562855256,3.29514,3805.7,3805.6,0.902]
[1754562855467,0.52548,3805.4,3805.3,1.3496]
[1754562855659,3.29521,3805.2,3805.1,0.902]
[1754562856158,2.2057,3804.9,3804.5,0.902]
[1754562856358,0.5256,3804.5,3804.4,0.902]
[1754562856556,3.2953,3804.6,3804.4,3.7248]
[1754562856764,1.3702,3804.6,3804.5,3.7248]
[1754562856957,0.52556,3804.9,3804.3,0.52563]
[1754562857158,4.6073,3805.0,3804.4,3.7248]
[1754562857452,0.52558,3804.7,3804.4,2.3752]
[1754562857659,0.52558,3804.7,3804.5,3.7248]
[1754562857961,0.52558,3804.7,3804.6,3.7248]
[1754562858258,0.52557,3804.8,3804.4,0.902]
[1754562858458,0.52558,3804.7,3804.2,3.7248]
[1754562858660,0.52558,3804.7,3804.4,3.7248]
[1754562858858,0.52558,3804.7,3804.5,3.7248]
[1754562859057,0.52558,3804.7,3804.6,3.7248]
[1754562859455,3.29528,3804.7,3804.6,2.3752]
[1754562859959,3.29528,3804.7,3804.6,3.7248]
[1754562860469,3.29534,3804.3,3804.2,2.3752]
[1754562860760,2.7697,3804.1,3803.8,1.3496]
[1754562860959,1.3702,3804.1,3803.9,3.7248]
[1754562861165,1.3702,3804.1,3804.0,3.7248]
[1754562861464,0.52567,3804.1,3803.5,3.7248]
[1754562861663,2.7697,3804.2,3803.6,0.902]
[1754562861859,0.52566,3804.1,3803.6,0.902]
[1754562862057,3.2078,3804.5,3803.9,2.3752]
[1754562862359,0.52559,3804.6,3804.2,0.52565]
[1754562862561,0.52557,3804.8,3804.6,2.2516]
[1754562862760,1.89577,3804.8,3804.7,3.7248]
[1754562862964,3.29527,3804.8,3804.7,3.7248]
[1754562863258,0.52556,3804.9,3804.7,2.8228]
[1754562863567,4.52154,3805.4,3805.3,4.25029]
[1754562863568,3.2078,3805.4,3805.3,4.25029]
[1754562864065,2.7697,3805.8,3805.5,0.52546]
[1754562864262,1.3702,3805.7,3805.4,4.25028]
[1754562864462,1.3702,3805.7,3805.1,3.2078]
[1754562864661,2.7697,3805.7,3805.6,0.902]
[1754562864854,3.2078,3806.0,3805.7,0.52544]
[1754562865060,2.08312281,3806.4,3805.7,3.2078]
[1754562865265,0.71292281,3806.6,3806.3,0.52535]
[1754562865461,6.813,3806.7,3806.4,0.52533]
[1754562865659,2.7697,3806.6,3806.4,1.42733]
[1754562865967,2.7697,3806.5,3806.4,1.42733]
[1754562866263,2.7697,3806.5,3806.4,2.90053]
[1754562866460,1.3702,3806.5,3806.4,4.25013]
[1754562866863,3.2078,3806.7,3806.6,0.52531]
[1754562867060,4.578,3806.7,3806.6,1.42731]
[1754562867258,4.578,3806.7,3806.6,2.90051]
[1754562867467,5.81710757,3806.7,3806.6,2.3752]
[1754562867667,7.21660757,3806.7,3806.6,0.902]
[1754562867969,6.69130757,3806.7,3806.6,0.902]
[1754562868170,8.57462605,3806.7,3806.6,2.3752]
[1754562868466,1.3702,3805.7,3805.2,0.902]
[1754562868675,1.3702,3805.7,3805.3,2.3752]
[1754562868676,1.3702,3805.4,3805.3,2.3752]
[1754562869168,1.06688,3805.5,3804.7,1.4541]
[1754562869169,1.8152,3804.9,3804.7,1.4541]
[1754562869360,1.8152,3804.8,3804.7,2.3616]
[1754562869761,1.8152,3804.8,3804.7,0.9075]
[1754562870074,1.2736,3804.6,3804.5,0.9075]
[1754562870264,1.2736,3804.6,3804.5,2.3616]
[1754562870765,0.52558,3804.5,3804.3,3.2078]
[1754562870968,2.6828,3804.4,3804.3,3.2078]
[1754562871558,0.52558,3804.5,3804.3,6.8513]
[1754562871771,0.52558,3804.6,3804.3,3.2078]
[1754562871972,0.5256,3804.4,3804.3,3.2078]
[1754562872169,0.5256,3804.4,3801.9,3.78133539]
[1754562872170,2.66691,3803.6,3803.5,1.4541]
[1754562872475,2.6828,3803.5,3803.4,3.2078]
[1754562873766,0.52574,3803.4,3802.8,4.6619]
[1754562873967,3.2078,3803.9,3802.8,3.2078]
[1754562873968,2.6828,3803.3,3802.8,3.2078]
[1754562874270,3.2078,3803.9,3802.9,1.4541]
[1754562874271,2.1412,3803.0,3802.9,1.4541]
[1754562874471,1.24193085,3803.8,3803.0,3.6435]
[1754562874773,0.71624085,3803.7,3803.1,1.4541]
[1754562874974,1.24195085,3803.7,3803.1,1.4541]
[1754562875274,0.8676,3803.5,3803.3,2.1894]
[1754562875471,1.2736,3803.6,3803.5,2.1894]
[1754562875768,2.1412,3803.6,3803.5,3.6435]
[1754562875964,2.1412,3803.6,3803.5,2.736]
[1754562876166,2.1412,3803.6,3803.5,1.4541]
[1754562876367,1.40906483,3804.3,3802.2,3.2078]
[1754562876368,1.2736,3803.3,3802.2,3.2078]
[1754562876569,1.2736,3802.4,3802.2,4.4897]
[1754562876777,1.2736,3802.3,3802.2,3.2078]
[1754562876969,1.2736,3802.3,3802.2,4.6619]
[1754562877171,0.52591,3802.2,3801.9,0.94688252]
[1754562877371,2.1412,3802.1,3802.0,1.4541]
[1754562877570,2.6828,3802.0,3801.9,0.94688252]
[1754562879277,2.1412,3802.0,3801.9,0.94688252]
[1754562879467,2.6828,3802.0,3801.9,0.94688252]
[1754562879676,0.8676,3802.3,3802.0,0.9075]
[1754562879984,3.92194541,3803.2,3802.0,2.59674]
[1754562880180,0.8676,3803.1,3803.0,1.4541]
[1754562880376,2.12321024,3803.6,3802.8,1.4541]
[1754562880674,2.12321024,3803.6,3802.6,1.31462]
[1754562880675,2.12321024,3803.8,3803.2,2.3616]
[1754562880882,0.71414541,3803.8,3803.3,1.4541]
[1754562881077,0.71414541,3803.8,3803.7,3.6435]
[1754562881577,0.71414541,3804.2,3803.7,0.52569]
[1754562881776,2.1412,3804.2,3803.9,1.2819]
[1754562881976,1.2736,3804.2,3803.9,1.2819]
[1754562882177,2.1412,3804.1,3803.9,2.736]
[1754562882377,2.6828,3804.0,3803.9,1.4541]
[1754562882578,2.6828,3804.0,3803.8,1.4541]
[1754562882874,3.2078,3804.3,3803.5,3.2078]
[1754562882875,2.12236112,3804.1,3803.5,3.2078]
[1754562883084,0.71329629,3804.0,3803.5,3.2078]
[1754562883380,1.2736,3803.7,3803.2,0.9075]
[1754562883675,1.2736,3803.7,3803.5,2.1894]
[1754562883881,0.52567,3803.9,3803.7,1.4541]
[1754562884083,0.5257,3803.7,3803.4,1.4541]
[1754562884284,2.1412,3803.5,3803.4,1.4541]
[1754562884581,2.1412,3803.5,3803.4,2.736]
[1754562884773,0.8676,3803.5,3803.4,3.6435]
[1754562884978,2.1412,3803.9,3803.4,3.6435]
[1754562885176,0.71329629,3804.2,3803.8,0.9075]
[1754562885375,0.52559,3804.5,3804.1,2.736]
[1754562885581,0.8676,3804.5,3804.3,2.1894]
[1754562885782,2.1412,3804.5,3804.4,1.4541]
[1754562886083,0.52571,3803.7,3803.0,3.6435]
[1754562886270,2.1412,3803.9,3803.2,1.2819]
[1754562886583,2.85495681,3803.9,3803.3,1.4541]
[1754562886778,0.52569,3803.8,3803.3,1.4541]
[1754562886975,0.52569,3803.8,3803.1,1.2819]
[1754562887178,0.5257,3803.7,3803.2,0.9075]
[1754562887486,0.5257,3803.7,3802.9,3.73361]
[1754562887884,0.52569,3803.8,3803.1,0.52578]
[1754562888079,0.52572,3803.6,3803.3,1.4541]
[1754562888281,0.52572,3803.6,3803.1,2.736]
[1754562888481,0.52572,3803.6,3802.9,3.2078]
[1754562888682,2.1412,3803.4,3803.1,2.1894]
[1754562888879,2.6828,3803.4,3803.1,2.1894]
[1754562889181,2.1412,3803.3,3803.1,2.1894]
[1754562889485,2.1412,3803.3,3803.2,1.4541]
[1754562889680,2.66696,3803.3,3803.2,1.4541]
[1754562889881,2.1412,3803.3,3803.2,1.4541]
[1754562890378,2.6828,3803.3,3803.1,2.1894]
[1754562890580,0.52577,3803.2,3803.1,2.1894]
[1754562890781,0.8676,3803.0,3802.9,1.4541]
[1754562891290,2.1412,3803.0,3802.9,1.4541]
[1754562891487,2.6828,3802.6,3802.1,3.2078]
[1754562891677,2.6828,3802.2,3802.1,3.2078]
[1754562891880,2.6828,3802.0,3801.9,0.94688252]
[1754562892591,2.66712,3802.1,3802.0,1.4541]
[1754562892982,2.1412,3802.1,3802.0,1.4541]
[1754562893182,0.52591,3802.3,3802.0,3.6435]
[1754562893386,2.66712,3802.1,3802.0,3.6435]
[1754562893683,4.52234,3802.9,3801.9,0.94688252]
[1754562893684,2.66708,3802.4,3802.3,1.4541]
[1754562893886,2.6828,3802.8,3802.0,2.736]
[1754562894282,2.1412,3802.4,3802.1,0.9075]
[1754562894588,2.1412,3802.4,3802.3,1.4541]
[1754562895188,0.52592,3802.2,3802.0,3.6435]
[1754562895388,2.1412,3802.2,3802.1,1.4541]
[1754562895691,2.1412,3802.8,3802.2,1.2819]
[1754562895889,0.52584,3802.7,3802.2,1.2819]
[1754562896181,0.8676,3802.6,3802.3,1.97999]
[1754562896381,3.73362,3802.9,3802.1,0.9075]
[1754562896586,3.2078,3802.9,3802.8,3.6435]
[1754562896981,0.52587,3802.5,3802.1,3.2078]
[1754562897181,0.52584,3802.7,3802.2,0.5259]
[1754562897381,0.52584,3802.7,3802.2,3.6435]
[1754562897582,0.8676,3802.6,3802.3,3.6435]
[1754562897782,0.52586,3802.6,3802.5,1.4541]
[1754562898387,0.5259,3802.3,3802.1,3.2078]
[1754562898584,2.6828,3802.8,3802.2,1.4541]
[1754562898987,0.52586,3802.6,3802.0,0.52593]
[1754562899188,0.52586,3802.6,3802.2,3.6318]
[1754562899391,0.52586,3802.6,3802.1,0.52591]
[1754562899689,0.52586,3802.6,3802.5,3.6318]
[1754562899890,2.75716,3802.6,3802.5,1.3959]
[1754562900085,3.30216,3802.6,3802.5,1.3959]
[1754562900285,1.31454,3802.9,3802.0,1.3959]
[1754562900286,1.4025,3802.3,3802.0,1.3959]
[1754562901692,2.75722,3802.2,3802.1,1.3959]
[1754562901985,1.88062,3802.2,3802.1,1.3959]
[1754562902388,1.31465,3802.6,3801.9,0.94688252]
[1754562902389,3.30224,3802.0,3801.9,0.94688252]
[1754562903187,2.75724,3802.0,3801.9,0.94688252]
[1754562903487,3.30224,3802.0,3801.9,0.94688252]
[1754562903892,3.39224,3802.0,3801.9,0.94688252]
[1754562905587,0.52601,3801.5,3801.4,3.2078]
[1754562905792,3.30231,3801.5,3801.4,3.2078]
[1754562906395,0.52606,3801.1,3801.0,4.6037]
[1754562906593,2.75736,3801.1,3801.0,4.6037]
[1754562906899,2.2313,3801.1,3801.0,5.4826]
[1754562907194,2.2313,3801.1,3801.0,6.8396]
[1754562907589,0.8766,3801.1,3801.0,6.8396]
[1754562907797,2.2313,3801.1,3801.0,6.8396]
[1754562907989,2.7763,3801.1,3801.0,4.6037]
[1754562908188,2.7763,3801.1,3801.0,3.2078]
[1754562908391,2.7763,3801.1,3801.0,4.6037]
[1754562908592,2.7763,3801.1,3801.0,3.2078]
[1754562909293,2.2313,3801.1,3801.0,6.8396]
[1754562909793,2.2313,3801.1,3801.0,5.4437]
[1754562910002,2.7763,3801.1,3801.0,4.6037]
[1754562910294,0.71588291,3801.6,3801.0,4.6037]
[1754562910494,2.2313,3801.6,3801.1,1.3959]
[1754562910693,0.545,3801.5,3801.2,3.6318]
[1754562910891,2.84731,3801.4,3801.3,1.3959]
[1754562911090,3.39231,3801.4,3801.3,1.3959]
[1754562911394,0.52608,3800.8,3800.7,0.8789]
[1754562911597,3.30238,3800.8,3800.6,3.2078]
[1754562911798,2.7763,3800.7,3800.6,3.2078]
[1754562912391,0.52613,3800.5,3800.3,1.357]
[1754562912595,0.52613,3800.5,3800.4,3.6318]
[1754562913093,0.9666,3800.7,3800.6,1.3959]
[1754562913300,0.9666,3800.7,3800.3,1.3959]
[1754562913301,2.75745,3800.4,3800.3,1.3959]
[1754562913591,0.52615,3800.4,3800.3,3.6318]
[1754562913792,1.40275,3800.4,3800.2,3.2078]
[1754562913998,1.3547,3800.3,3800.2,5.9607]
[1754562914186,2.2313,3800.3,3800.2,5.9607]
[1754562914498,2.2313,3800.3,3800.2,4.6037]
[1754562914694,2.2313,3800.3,3800.2,3.6318]
[1754562914898,0.71463112,3800.6,3800.3,2.7529]
[1754562915197,0.52618,3800.2,3800.0,3.6318]
[1754562915492,3.2978,3800.7,3800.3,3.6318]
[1754562915702,0.52613,3800.5,3800.4,3.6318]
[1754562915994,1.40277,3800.2,3800.1,1.3959]
[1754562916294,0.52619,3800.0,3799.9,3.2078]
[1754562916499,3.30249,3800.0,3799.9,4.6037]
[1754562917100,3.39249,3800.0,3799.9,3.2078]
[1754562917402,2.2313,3799.6,3799.5,2.7529]
[1754562917596,1.4216,3799.5,3799.3,1.3959]
[1754562917897,2.7763,3799.4,3799.3,1.3959]
[1754562918100,1.40289,3799.3,3799.2,1.3959]
[1754562918395,2.2313,3799.3,3799.2,1.3959]
[1754562918594,0.8766,3799.3,3799.2,3.6318]
[1754562918794,0.61629,3799.4,3799.1,3.2078]
[1754562918795,3.3026,3799.2,3799.1,3.2078]
[1754562919101,0.09,3799.4,3799.3,3.6318]